[Event "9th Amsterdam Science Park A 2019"]
[Site "Amsterdam"]
[Date "2019.07.09"]
[Round "4.12"]
[White "Bosboom, Manuel"]
[Black "Mienis, Dennis"]
[Result "1-0"]
[ECO "A06"]
[WhiteElo "2418"]
[BlackElo "1993"]
[Annotator "NA"]
[PlyCount "113"]
[EventDate "2019.07.06"]
[EventType "swiss"]
[EventCountry "NED"]
[SourceTitle "playchess.com"]
[Source "ChessBase"]
[SourceQuality "1"]
[TimeControl "40/5400+30:1800+30"]

1. Nf3 {[%emt 0:00:57]} d5 {[%emt 0:00:00]} 2. c4 {[%emt 0:00:08]} e6 {[%emt 0:00:00]} 3. a3 {[%emt 0:01:40]} c5 {[%emt 0:00:08]} 4. e3 {[%emt 0:00:46]} Nf6 {[%emt 0:01:44]} 5. d4 {[%emt 0:01:53]} Nc6 {[%emt 0:09:48]} 6. dxc5 {[%emt 0:01:20]} dxc4 {[%emt 0:05:58]} 7. Qc2 {[%emt 0:16:07]} Qa5+ {[%emt 0:10:06]} 8. Nbd2 c3 {[%emt 0:07:32]} 9. bxc3 {[%emt 0:02:18]} Qxc5 10. Nb3 {[%emt 0:07:32]} Qh5 {[%emt 0:07:18]} 11. Nbd4 {[%emt 0:01:10]} Bc5 {[%emt 0:10:32]} 12. Rb1 {[%emt 0:10:19]} Bb6 13. Rb5 {[%emt 0:20:05]} Qg6 {[%emt 0:15:51]} 14. Qb3 h6 15. h4 {[%emt 0:09:04]} Nd7 {[%emt 0:07:44]} 16. g4 Qxg4 {[%emt 0:03:45]} 17. Be2 {[%emt 0:16:32]} Qe4 {[%emt 0:01:08]} 18. Rg1 {[%emt 0:00:23]} Nc5 {[%emt 0:06:08]} 19. Qc4 {[%emt 0:00:56]} Qd5 {[%emt 0:01:27]} 20. Qxd5 {[%emt 0:02:23]} exd5 {[%emt 0:00:01]} 21. Rxg7 {[%emt 0:00:09]} Kf8 {[%emt 0:01:04]} 22. Rg1 {[%emt 0:00:24]} Ne4 {[%emt 0:02:35]} 23. Bb2 {[%emt 0:00:46]} Nxd4 {[%emt 0:03:46]} 24. Nxd4 {[%emt 0:00:28]} Nf6 {[%emt 0:01:03]} 25. Nf3 {[%emt 0:03:35]} Rg8 {[%emt 0:00:26]} 26. Rxg8+ {[%emt 0:00:11]} Nxg8 {[%emt 0:00:08]} 27. c4 {[%emt 0:00:35]} dxc4 {[%emt 0:00:23]} 28. Ne5 {[%emt 0:00:24]} Be6 {[%emt 0:01:57]} 29. Nxc4 {[%emt 0:00:15]} Bd8 {[%emt 0:00:51]} 30. Rxb7 {[%emt 0:02:14]} Bxh4 {[%emt 0:00:06]} 31. Bd4 {[%emt 0:00:30]} Bd5 {[%emt 0:01:13]} 32. Rd7 {[%emt 0:00:42]} Ne7 {[%emt 0:00:22]} 33. Rxa7 {[%emt 0:00:57]} Rxa7 {[%emt 0:00:09]} 34. Bxa7 {[%emt 0:00:02]} Nc6 {[%emt 0:00:39]} 35. Bc5+ {[%emt 0:00:05]} Be7 {[%emt 0:00:09]} 36. Bxe7+ {[%emt 0:00:29]} Kxe7 {[%emt 0:00:02]} 37. Nd2 Ne5 {[%emt 0:01:09]} 38. f4 {[%emt 0:00:48]} Nd7 {[%emt 0:00:21]} 39. e4 {[%emt 0:00:56]} Bc6 {[%emt 0:00:13]} 40. Kf2 {[%emt 0:00:12]} Kd6 {[%emt 0:00:35]} 41. Ke3 {[%emt 0:30:09]} f6 {[%emt 0:04:49]} 42. Kd4 {[%emt 0:00:00]} Nb6 {[%emt 0:07:20]} 43. Nf1 Bd7 {[%emt 0:08:11]} 44. Ng3 {[%emt 0:00:00]} Na8 {[%emt 0:06:16]} 45. Nh5 {[%emt 0:00:00]} Ke7 {[%emt 0:00:41]} 46. Kc5 {[%emt 0:00:00]} Nc7 {[%emt 0:00:07]} 47. f5 {[%emt 0:00:00]} Ne8 {[%emt 0:00:24]} 48. Nf4 Ba4 {[%emt 0:01:50]} 49. Nd5+ {[%emt 0:00:00]} Kd8 {[%emt 0:01:41]} 50. Bh5 {[%emt 0:00:00]} Bc2 51. Kd4 {[%emt 0:00:00]} Nd6 {[%emt 0:04:35]} 52. Nxf6 {[%emt 0:00:00]} Nb5+ 53. Kc5 Nxa3 {[%emt 0:00:18]} 54. Bg6 {[%emt 0:00:00]} Bd1 {[%emt 0:00:57]} 55. e5 {[%emt 0:00:00]} Be2 {[%emt 0:00:32]} 56. e6 {[%emt 0:00:00]} Nc4 {[%emt 0:00:22]} 57. Nd5 {[%emt 0:00:00]} 1-0

[Event "9th Amsterdam Science Park A 2019"]
[Site "Amsterdam"]
[Date "2019.07.10"]
[Round "5.1"]
[White "Ulybin, Mikhail"]
[Black "Arnaudov, G. Petar"]
[Result "1-0"]
[ECO "E04"]
[WhiteElo "2469"]
[BlackElo "2478"]
[Annotator "ChessBase"]
[PlyCount "53"]
[EventDate "2019.07.06"]
[EventType "swiss"]
[EventCountry "NED"]
[SourceTitle "playchess.com"]
[Source "ChessBase"]
[SourceQuality "1"]
[TimeControl "40/5400+30:1800+30"]

1. d4 {[%emt 0:07:23]} d5 {[%emt 0:00:00]} 2. c4 {[%emt 0:02:15]} e6 {[%emt 0:00:00]} 3. Nf3 {[%emt 0:01:02]} Nf6 {[%emt 0:00:04]} 4. g3 {[%emt 0:01:37]} dxc4 {[%emt 0:00:05]} 5. Bg2 {[%emt 0:03:27]} Bd7 {[%emt 0:02:14]} 6. Ne5 {[%emt 0:02:44]} Bc6 {[%emt 0:00:11]} 7. Nxc6 {[%emt 0:00:58]} Nxc6 {[%emt 0:00:07]} 8. O-O {[%emt 0:02:09]} Qd7 {[%emt 0:00:24]} 9. e3 {[%emt 0:00:59]} Rd8 {[%emt 0:01:16]} 10. Qc2 {[%emt 0:09:21]} e5 {[%emt 0:01:11]} 11. dxe5 {[%emt 0:08:12]} Nxe5 {[%emt 0:02:17]} 12. Nd2 {[%emt 0:07:18]} b5 {[%emt 0:03:49]} 13. a4 {[%emt 0:03:24]} a6 {[%emt 0:03:52]} 14. axb5 {[%emt 0:01:35]} axb5 {[%emt 0:00:05]} 15. b3 {[%emt 0:01:56]} Bb4 {[%emt 0:05:38]} 16. bxc4 {[%emt 0:05:17]} O-O {[%emt 0:15:30]} 17. cxb5 {[%emt 0:29:24]} Bxd2 {[%emt 0:00:42]} 18. Rd1 {[%emt 0:00:30]} Qg4 {[%emt 0:05:48]} 19. Rxd2 {[%emt 0:02:10]} Nf3+ {[%emt 0:03:00]} 20. Bxf3 {[%emt 0:00:19]} Qxf3 {[%emt 0:01:18]} 21. Qxc7 {[%emt 0:03:35]} Rxd2 {[%emt 0:01:37]} 22. Bxd2 {[%emt 0:00:15]} Qe2 {[%emt 0:07:21]} 23. Bb4 {[%emt 0:02:04]} Ne4 {[%emt 0:10:44]} 24. Rf1 {[%emt 0:01:03]} Re8 {[%emt 0:04:31]} 25. Qc6 {[%emt 0:00:59]} Nf6 {[%emt 0:00:06]} 26. b6 {[%emt 0:01:11]} Qa6 {[%emt 0:00:28]} 27. Rc1 {[%emt 0:01:15]} 1-0

[Event "9th Amsterdam Science Park A 2019"]
[Site "Amsterdam"]
[Date "2019.07.10"]
[Round "5.2"]
[White "Meshkovs, Nikita"]
[Black "De Groote, Ewoud"]
[Result "1-0"]
[ECO "A05"]
[WhiteElo "2550"]
[BlackElo "2225"]
[Annotator "ChessBase"]
[PlyCount "129"]
[EventDate "2019.07.06"]
[EventType "swiss"]
[EventCountry "NED"]
[SourceTitle "playchess.com"]
[Source "ChessBase"]
[SourceQuality "1"]
[TimeControl "40/5400+30:1800+30"]

1. Nf3 {[%emt 0:02:43]} Nf6 {[%emt 0:00:04]} 2. g3 {[%emt 0:01:27]} b5 {[%emt 0:04:04]} 3. Bg2 {[%emt 0:04:11]} Bb7 {[%emt 0:00:07]} 4. Na3 {[%emt 0:00:31]} a6 {[%emt 0:03:14]} 5. c4 {[%emt 0:00:34]} e5 {[%emt 0:02:55]} 6. cxb5 {[%emt 0:08:36]} Bxa3 {[%emt 0:00:09]} 7. bxa3 {[%emt 0:00:17]} axb5 {[%emt 0:01:41]} 8. Qb3 {[%emt 0:00:42]} Bd5 {[%emt 0:04:51]} 9. Qxb5 {[%emt 0:07:00]} O-O {[%emt 0:12:14]} 10. O-O {[%emt 0:03:32]} d6 {[%emt 0:02:32]} 11. d3 {[%emt 0:04:00]} c5 {[%emt 0:01:04]} 12. e4 {[%emt 0:09:45]} Be6 {[%emt 0:17:56]} 13. Nh4 {[%emt 0:06:01]} Ra5 {[%emt 0:03:20]} 14. Qb7 {[%emt 0:05:18]} Qc8 {[%emt 0:07:25]} 15. Rb1 {[%emt 0:08:11]} Nc6 {[%emt 0:03:51]} 16. f4 {[%emt 0:00:33]} Nd4 {[%emt 0:06:46]} 17. fxe5 {[%emt 0:15:30]} dxe5 {[%emt 0:00:52]} 18. Kh1 {[%emt 0:09:30]} Bxa2 {[%emt 0:01:27]} 19. Qxc8 {[%emt 0:01:27]} Rxc8 {[%emt 0:00:08]} 20. Rb6 {[%emt 0:00:04]} Raa8 {[%emt 0:09:28]} 21. Nf3 {[%emt 0:04:11]} Nxf3 {[%emt 0:03:45]} 22. Bxf3 {[%emt 0:00:02]} c4 {[%emt 0:01:54]} 23. dxc4 {[%emt 0:00:33]} Bxc4 {[%emt 0:00:18]} 24. Rd1 {[%emt 0:00:44]} Be6 {[%emt 0:02:13]} 25. Bb2 {[%emt 0:00:26]} h5 {[%emt 0:03:13]} 26. Rd2 {[%emt 0:02:06]} Ra5 {[%emt 0:02:26]} 27. Kg1 {[%emt 0:01:31]} Rc4 {[%emt 0:01:25]} 28. Rb4 {[%emt 0:01:30]} Rcc5 {[%emt 0:02:05]} 29. Be2 {[%emt 0:00:25]} Bd7 {[%emt 0:01:06]} 30. Bc4 {[%emt 0:01:15]} Rc8 {[%emt 0:01:38]} 31. Bb3 {[%emt 0:00:41]} Bc6 {[%emt 0:00:12]} 32. Rc2 {[%emt 0:00:30]} Raa8 {[%emt 0:00:43]} 33. Bxe5 {[%emt 0:01:17]} Nxe4 {[%emt 0:00:45]} 34. Rb6 {[%emt 0:01:03]} Ng5 {[%emt 0:00:30]} 35. Bb2 {[%emt 0:00:35]} Be8 {[%emt 0:00:11]} 36. Rxc8 {[%emt 0:00:42]} Rxc8 {[%emt 0:00:01]} 37. Rg6 {[%emt 0:00:31]} Rb8 {[%emt 0:01:08]} 38. Rxg7+ Kf8 39. Rxg5 {[%emt 0:00:36]} Rxb3 {[%emt 0:00:04]} 40. Bf6 {[%emt 0:00:20]} Bc6 {[%emt 0:01:27]} 41. Rc5 {[%emt 0:02:42]} Bb7 {[%emt 0:06:08]} 42. Rxh5 {[%emt 0:01:12]} Ke8 {[%emt 0:00:49]} 43. a4 {[%emt 0:00:16]} Bc6 {[%emt 0:08:51]} 44. a5 {[%emt 0:01:00]} Ra3 {[%emt 0:01:21]} 45. Rc5 {[%emt 0:10:17]} Kd7 {[%emt 0:00:46]} 46. Be5 {[%emt 0:00:12]} Be4 {[%emt 0:03:42]} 47. h4 {[%emt 0:00:50]} Ra2 {[%emt 0:01:33]} 48. h5 {[%emt 0:01:08]} Rg2+ {[%emt 0:01:17]} 49. Kf1 {[%emt 0:00:06]} Rh2 {[%emt 0:00:59]} 50. Bf4 {[%emt 0:00:09]} f6 {[%emt 0:00:46]} 51. h6 {[%emt 0:00:23]} Ke6 {[%emt 0:00:36]} 52. Ke1 {[%emt 0:01:17]} Ra2 {[%emt 0:04:37]} 53. Bd2 {[%emt 0:01:19]} Ra3 {[%emt 0:01:04]} 54. Bf4 {[%emt 0:04:29]} Ra2 {[%emt 0:00:12]} 55. Rh5 {[%emt 0:00:54]} Bh7 {[%emt 0:00:20]} 56. Kd1 {[%emt 0:01:48]} Kf7 {[%emt 0:01:24]} 57. Rc5 {[%emt 0:01:19]} Ke6 {[%emt 0:00:39]} 58. Rc6+ {[%emt 0:02:14]} Kf5 {[%emt 0:00:24]} 59. Rc7 {[%emt 0:01:36]} Bg6 {[%emt 0:00:19]} 60. h7 {[%emt 0:01:10]} Rh2 {[%emt 0:01:00]} 61. a6 {[%emt 0:00:05]} Bh5+ {[%emt 0:00:24]} 62. Kc1 {[%emt 0:00:21]} Bf3 {[%emt 0:00:04]} 63. Rg7 {[%emt 0:00:24]} Be4 {[%emt 0:00:21]} 64. a7 {[%emt 0:00:22]} Ke6 {[%emt 0:00:52]} 65. g4 {[%emt 0:01:11]} 1-0

[Event "9th Amsterdam Science Park A 2019"]
[Site "Amsterdam"]
[Date "2019.07.10"]
[Round "5.3"]
[White "De Ruiter, Danny"]
[Black "Gleizerov, Evgeny"]
[Result "0-1"]
[ECO "A90"]
[WhiteElo "2310"]
[BlackElo "2498"]
[Annotator "ChessBase"]
[PlyCount "54"]
[EventDate "2019.07.06"]
[EventType "swiss"]
[EventCountry "NED"]
[SourceTitle "playchess.com"]
[Source "ChessBase"]
[SourceQuality "1"]
[TimeControl "40/5400+30:1800+30"]

1. d4 {[%emt 0:00:09]} e6 {[%emt 0:00:00]} 2. c4 {[%emt 0:00:31]} f5 {[%emt 0:00:00]} 3. g3 {[%emt 0:00:36]} Nf6 {[%emt 0:00:00]} 4. Bg2 {[%emt 0:00:12]} d5 {[%emt 0:00:00]} 5. Nf3 {[%emt 0:00:20]} Bd6 {[%emt 0:00:18]} 6. O-O {[%emt 0:00:35]} c6 {[%emt 0:00:21]} 7. Nc3 {[%emt 0:01:14]} O-O {[%emt 0:00:07]} 8. Qc2 {[%emt 0:00:02]} Ne4 {[%emt 0:02:26]} 9. Rb1 {[%emt 0:00:33]} b6 {[%emt 0:00:57]} 10. b4 {[%emt 0:05:20]} Bb7 {[%emt 0:00:07]} 11. c5 {[%emt 0:08:09]} Bc7 {[%emt 0:01:31]} 12. Bf4 {[%emt 0:05:31]} Bxf4 {[%emt 0:00:40]} 13. gxf4 {[%emt 0:00:09]} Nd7 {[%emt 0:00:44]} 14. Nd1 {[%emt 0:06:18]} g5 {[%emt 0:08:42]} 15. fxg5 {[%emt 0:01:44]} Nxg5 {[%emt 0:00:45]} 16. Nxg5 {[%emt 0:05:03]} Qxg5 {[%emt 0:00:26]} 17. Rb3 {[%emt 0:00:07]} f4 {[%emt 0:05:44]} 18. Nb2 {[%emt 0:07:50]} Rf6 {[%emt 0:06:19]} 19. Kh1 {[%emt 0:02:10]} Rg6 {[%emt 0:03:55]} 20. Bh3 {[%emt 0:02:00]} Kh8 {[%emt 0:01:05]} 21. Rf3 {[%emt 0:01:00]} Rag8 {[%emt 0:09:14]} 22. Qc1 {[%emt 0:00:21]} e5 {[%emt 0:04:26]} 23. e3 {[%emt 0:17:50]} Qh5 {[%emt 0:06:23]} 24. Qd1 {[%emt 0:02:43]} e4 {[%emt 0:00:58]} 25. Rg3 {[%emt 0:03:05]} Qxd1 {[%emt 0:01:56]} 26. Rxd1 {[%emt 0:00:17]} fxg3 {[%emt 0:00:06]} 27. Bxd7 {[%emt 0:00:07]} gxf2 {[%emt 0:00:06]} 0-1

[Event "9th Amsterdam Science Park A 2019"]
[Site "Amsterdam"]
[Date "2019.07.10"]
[Round "5.4"]
[White "Ten Hertog, Hugo"]
[Black "Belous, Mikhail"]
[Result "1-0"]
[ECO "B90"]
[WhiteElo "2484"]
[BlackElo "2289"]
[Annotator "ChessBase"]
[PlyCount "93"]
[EventDate "2019.07.06"]
[EventType "swiss"]
[EventCountry "NED"]
[SourceTitle "playchess.com"]
[Source "ChessBase"]
[SourceQuality "1"]
[TimeControl "40/5400+30:1800+30"]

1. e4 {[%emt 0:00:41]} c5 {[%emt 0:00:00]} 2. Nf3 {[%emt 0:00:10]} d6 {[%emt 0:00:00]} 3. d4 {[%emt 0:00:03]} cxd4 {[%emt 0:00:00]} 4. Nxd4 {[%emt 0:00:03]} Nf6 {[%emt 0:00:00]} 5. Nc3 {[%emt 0:00:03]} a6 {[%emt 0:00:00]} 6. Qe2 {[%emt 0:00:03]} e5 {[%emt 0:06:52]} 7. Nf5 {[%emt 0:00:08]} Bxf5 {[%emt 0:06:57]} 8. exf5 {[%emt 0:00:05]} Nc6 {[%emt 0:03:09]} 9. Bg5 {[%emt 0:04:34]} Nd4 {[%emt 0:04:43]} 10. Qd3 {[%emt 0:09:45]} Rc8 {[%emt 0:07:11]} 11. g3 {[%emt 0:39:27]} Be7 {[%emt 0:21:48]} 12. Bg2 {[%emt 0:11:52]} Qd7 {[%emt 0:00:52]} 13. Bxf6 {[%emt 0:08:10]} Bxf6 {[%emt 0:00:31]} 14. O-O {[%emt 0:02:41]} Qxf5 {[%emt 0:13:04]} 15. Qxf5 {[%emt 0:05:22]} Nxf5 {[%emt 0:00:03]} 16. Bxb7 {[%emt 0:00:06]} Rb8 {[%emt 0:00:13]} 17. Bxa6 {[%emt 0:01:38]} Nd4 {[%emt 0:06:49]} 18. Rab1 {[%emt 0:05:06]} Nf3+ {[%emt 0:02:03]} 19. Kg2 {[%emt 0:00:03]} Nd2 {[%emt 0:00:13]} 20. b4 {[%emt 0:00:28]} Nxb1 {[%emt 0:02:47]} 21. Rxb1 {[%emt 0:00:24]} Kd7 {[%emt 0:00:55]} 22. Nd5 {[%emt 0:00:36]} Bd8 {[%emt 0:02:31]} 23. a4 {[%emt 0:00:25]} f5 {[%emt 0:02:17]} 24. c4 {[%emt 0:01:48]} Bb6 {[%emt 0:01:06]} 25. Bb5+ {[%emt 0:00:09]} Ke6 {[%emt 0:02:44]} 26. Nxb6 {[%emt 0:01:44]} Rxb6 {[%emt 0:00:01]} 27. a5 {[%emt 0:00:02]} Rb7 {[%emt 0:00:21]} 28. Bc6 {[%emt 0:00:26]} Ra7 {[%emt 0:00:13]} 29. Ra1 {[%emt 0:00:51]} Rc8 {[%emt 0:03:06]} 30. Bd5+ {[%emt 0:00:06]} Kd7 {[%emt 0:00:10]} 31. b5 {[%emt 0:02:43]} Rc5 {[%emt 0:02:50]} 32. Kf3 {[%emt 0:00:06]} Kc8 {[%emt 0:00:45]} 33. Ke3 {[%emt 0:00:13]} Kb8 {[%emt 0:00:40]} 34. Kd3 {[%emt 0:00:07]} g5 {[%emt 0:09:44]} 35. Kc3 {[%emt 0:00:31]} Rc8 {[%emt 0:01:17]} 36. Kb4 {[%emt 0:00:36]} Rc5 {[%emt 0:00:59]} 37. f3 {[%emt 0:03:00]} e4 {[%emt 0:01:00]} 38. fxe4 {[%emt 0:00:16]} fxe4 {[%emt 0:00:02]} 39. b6 {[%emt 0:01:40]} Ra6 {[%emt 0:00:29]} 40. Rf1 {[%emt 0:00:09]} e3 {[%emt 0:00:37]} 41. Rf8+ {[%emt 0:31:30]} Rc8 {[%emt 0:30:06]} 42. Rxc8+ {[%emt 0:00:00]} Kxc8 {[%emt 0:00:00]} 43. Bf3 {[%emt 0:00:00]} Kd7 {[%emt 0:00:00]} 44. Kb5 {[%emt 0:00:00]} Ra8 {[%emt 0:00:00]} 45. Bg4+ {[%emt 0:00:00]} Ke7 {[%emt 0:00:00]} 46. b7 {[%emt 0:00:00]} Rf8 {[%emt 0:00:00]} 47. Kc6 {[%emt 0:00:00]} 1-0

[Event "9th Amsterdam Science Park A 2019"]
[Site "Amsterdam"]
[Date "2019.07.10"]
[Round "5.5"]
[White "Dimitrijeski, Kristian"]
[Black "Zwirs, Nico"]
[Result "0-1"]
[ECO "B14"]
[WhiteElo "2186"]
[BlackElo "2380"]
[Annotator "NA"]
[PlyCount "66"]
[EventDate "2019.07.06"]
[EventType "swiss"]
[EventCountry "NED"]
[SourceTitle "playchess.com"]
[Source "ChessBase"]
[SourceQuality "1"]
[TimeControl "40/5400+30:1800+30"]

1. d4 {[%emt 0:00:00]} Nf6 {[%emt 0:00:00]} 2. c4 {[%emt 0:00:00]} c5 {[%emt 0:00:00]} 3. e3 {[%emt 0:01:33]} cxd4 {[%emt 0:00:15]} 4. exd4 {[%emt 0:00:07]} d5 {[%emt 0:00:05]} 5. Nc3 {[%emt 0:01:04]} g6 {[%emt 0:02:17]} 6. cxd5 {[%emt 0:01:56]} Nxd5 {[%emt 0:01:52]} 7. Qb3 {[%emt 0:06:29]} Nb6 {[%emt 0:00:51]} 8. Nf3 {[%emt 0:00:24]} Be6 {[%emt 0:04:14]} 9. Bb5+ {[%emt 0:07:50]} Nc6 {[%emt 0:00:35]} 10. Qd1 {[%emt 0:01:35]} Bg7 {[%emt 0:05:45]} 11. O-O {[%emt 0:02:35]} O-O {[%emt 0:00:44]} 12. Be3 {[%emt 0:04:16]} Rc8 {[%emt 0:11:55]} 13. Rc1 {[%emt 0:03:00]} Bc4 {[%emt 0:09:51]} 14. Re1 {[%emt 0:13:11]} Bxb5 {[%emt 0:12:58]} 15. Nxb5 {[%emt 0:00:08]} Nd5 {[%emt 0:06:24]} 16. Nc3 {[%emt 0:01:07]} Nxe3 {[%emt 0:01:10]} 17. fxe3 {[%emt 0:00:11]} e6 {[%emt 0:01:44]} 18. Qe2 {[%emt 0:06:31]} e5 {[%emt 0:11:08]} 19. d5 {[%emt 0:06:45]} e4 {[%emt 0:00:18]} 20. dxc6 {[%emt 0:02:07]} exf3 {[%emt 0:00:07]} 21. Qxf3 {[%emt 0:01:46]} Rxc6 {[%emt 0:01:38]} 22. Nd5 {[%emt 0:07:15]} Rxc1 {[%emt 0:03:45]} 23. Rxc1 {[%emt 0:00:07]} Bxb2 {[%emt 0:00:04]} 24. Rb1 {[%emt 0:07:59]} Be5 {[%emt 0:00:08]} 25. Rxb7 {[%emt 0:00:49]} Qa5 {[%emt 0:02:05]} 26. Nb4 {[%emt 0:06:20]} Bd6 {[%emt 0:01:15]} 27. Qe4 {[%emt 0:02:53]} Qh5 {[%emt 0:09:18]} 28. g3 {[%emt 0:02:15]} Qd1+ {[%emt 0:00:16]} 29. Kg2 {[%emt 0:00:19]} Qe2+ {[%emt 0:03:38]} 30. Kh3 {[%emt 0:00:10]} Qf1+ {[%emt 0:03:24]} 31. Qg2 {[%emt 0:05:21]} Qf5+ {[%emt 0:00:33]} 32. g4 {[%emt 0:00:08]} Qg5 {[%emt 0:00:20]} 33. Qg1 {[%emt 0:09:23]} Re8 {[%emt 0:02:47]} 0-1

[Event "9th Amsterdam Science Park A 2019"]
[Site "Amsterdam"]
[Date "2019.07.10"]
[Round "5.6"]
[White "Van der Lende, Ilias"]
[Black "Smirnova, Ekaterina"]
[Result "1-0"]
[ECO "A11"]
[WhiteElo "2350"]
[BlackElo "2184"]
[Annotator "NA"]
[PlyCount "89"]
[EventDate "2019.07.06"]
[EventType "swiss"]
[EventCountry "NED"]
[SourceTitle "playchess.com"]
[Source "ChessBase"]
[SourceQuality "1"]
[TimeControl "40/5400+30:1800+30"]

1. c4 {[%emt 0:00:00]} c6 {[%emt 0:00:00]} 2. e4 {[%emt 0:00:00]} e6 {[%emt 0:03:31]} 3. d4 {[%emt 0:00:33]} d5 {[%emt 0:00:13]} 4. Nc3 {[%emt 0:00:47]} dxe4 {[%emt 0:04:49]} 5. Nxe4 {[%emt 0:00:41]} Bb4+ {[%emt 0:00:07]} 6. Bd2 {[%emt 0:03:30]} Bxd2+ {[%emt 0:01:13]} 7. Qxd2 {[%emt 0:00:07]} Nf6 {[%emt 0:00:09]} 8. Nc3 {[%emt 0:05:56]} O-O {[%emt 0:02:17]} 9. Nf3 {[%emt 0:00:19]} Nbd7 {[%emt 0:01:51]} 10. g3 {[%emt 0:04:04]} b5 {[%emt 0:20:17]} 11. cxb5 {[%emt 0:04:32]} cxb5 {[%emt 0:00:01]} 12. Bxb5 {[%emt 0:00:15]} Bb7 {[%emt 0:00:05]} 13. Be2 {[%emt 0:00:11]} Qa5 {[%emt 0:02:26]} 14. O-O {[%emt 0:08:53]} Qf5 {[%emt 0:01:55]} 15. Nh4 {[%emt 0:09:58]} Qh3 {[%emt 0:00:51]} 16. f3 {[%emt 0:00:29]} e5 {[%emt 0:03:10]} 17. d5 {[%emt 0:12:45]} Nb6 {[%emt 0:02:43]} 18. Bd3 {[%emt 0:02:52]} Qd7 {[%emt 0:05:49]} 19. Nf5 {[%emt 0:02:23]} Nfxd5 {[%emt 0:02:22]} 20. Rad1 {[%emt 0:09:03]} Nxc3 {[%emt 0:05:34]} 21. bxc3 {[%emt 0:00:25]} Qe6 {[%emt 0:03:59]} 22. Qg5 {[%emt 0:14:53]} Qf6 {[%emt 0:01:29]} 23. Qxf6 {[%emt 0:01:56]} gxf6 {[%emt 0:00:02]} 24. c4 {[%emt 0:02:21]} Na4 {[%emt 0:02:43]} 25. Be4 {[%emt 0:08:24]} Bxe4 {[%emt 0:00:37]} 26. fxe4 {[%emt 0:00:03]} Nc3 {[%emt 0:01:17]} 27. Rde1 {[%emt 0:00:20]} Nxa2 {[%emt 0:04:30]} 28. c5 {[%emt 0:00:08]} Nb4 {[%emt 0:00:55]} 29. Ne7+ {[%emt 0:01:05]} Kg7 {[%emt 0:01:35]} 30. c6 {[%emt 0:00:31]} Rae8 {[%emt 0:01:31]} 31. Nf5+ {[%emt 0:00:13]} Kh8 {[%emt 0:00:08]} 32. Rc1 {[%emt 0:01:23]} Rc8 {[%emt 0:02:04]} 33. c7 {[%emt 0:00:10]} Na6 {[%emt 0:02:38]} 34. Rc6 {[%emt 0:00:05]} Nxc7 {[%emt 0:00:21]} 35. Ne7 {[%emt 0:03:18]} Ra8 {[%emt 0:00:22]} 36. Rxc7 {[%emt 0:00:06]} a5 {[%emt 0:00:03]} 37. Ra1 {[%emt 0:01:13]} Rfb8 {[%emt 0:00:34]} 38. Ra4 {[%emt 0:01:20]} Rb1+ {[%emt 0:00:54]} 39. Kg2 {[%emt 0:00:06]} Rb2+ {[%emt 0:00:03]} 40. Kh3 {[%emt 0:00:11]} h5 {[%emt 0:00:10]} 41. Nf5 {[%emt 0:32:49]} Kg8 {[%emt 0:31:04]} 42. Nh6+ {[%emt 0:00:36]} Kg7 {[%emt 0:00:05]} 43. Nxf7 {[%emt 0:00:56]} Kg6 {[%emt 0:00:05]} 44. Nd6 {[%emt 0:00:42]} Re2 {[%emt 0:00:56]} 45. Nf5 {[%emt 0:00:19]} 1-0

[Event "9th Amsterdam Science Park A 2019"]
[Site "Amsterdam"]
[Date "2019.07.10"]
[Round "5.7"]
[White "Mesman, Edwyn"]
[Black "Bosboom, Manuel"]
[Result "0-1"]
[ECO "E68"]
[WhiteElo "2204"]
[BlackElo "2418"]
[Annotator "NA"]
[PlyCount "118"]
[EventDate "2019.07.06"]
[EventType "swiss"]
[EventCountry "NED"]
[SourceTitle "playchess.com"]
[Source "ChessBase"]
[SourceQuality "1"]
[TimeControl "40/5400+30:1800+30"]

1. d4 {[%emt 0:00:00]} Nf6 {[%emt 0:01:15]} 2. c4 {[%emt 0:00:00]} d6 {[%emt 0:00:18]} 3. Nf3 {[%emt 0:00:00]} Nbd7 {[%emt 0:00:22]} 4. g3 {[%emt 0:02:04]} g6 {[%emt 0:01:13]} 5. Bg2 {[%emt 0:00:22]} Bg7 {[%emt 0:00:05]} 6. O-O {[%emt 0:00:17]} O-O {[%emt 0:00:37]} 7. Nc3 {[%emt 0:00:20]} e5 {[%emt 0:03:00]} 8. e4 {[%emt 0:00:56]} exd4 {[%emt 0:03:16]} 9. Nxd4 {[%emt 0:00:40]} c6 {[%emt 0:00:59]} 10. h3 {[%emt 0:00:21]} Qa5 {[%emt 0:04:07]} 11. Re1 {[%emt 0:01:04]} Re8 {[%emt 0:07:16]} 12. Be3 {[%emt 0:03:27]} Ne5 {[%emt 0:09:04]} 13. Bf1 {[%emt 0:00:51]} Be6 {[%emt 0:17:17]} 14. Nxe6 {[%emt 0:00:44]} Rxe6 {[%emt 0:00:35]} 15. Kg2 {[%emt 0:00:34]} Rae8 {[%emt 0:00:45]} 16. c5 {[%emt 0:00:47]} b5 {[%emt 0:07:54]} 17. cxd6 {[%emt 0:28:42]} Ned7 {[%emt 0:01:49]} 18. f3 {[%emt 0:05:52]} Bf8 {[%emt 0:04:52]} 19. Qc2 {[%emt 0:15:06]} Bxd6 {[%emt 0:01:18]} 20. Ne2 {[%emt 0:01:21]} c5 {[%emt 0:16:46]} 21. Red1 {[%emt 0:01:39]} Qb6 {[%emt 0:07:10]} 22. Rac1 {[%emt 0:06:49]} Qb7 {[%emt 0:00:42]} 23. Rd2 {[%emt 0:01:56]} Nxe4 {[%emt 0:02:37]} 24. fxe4 {[%emt 0:13:24]} Rxe4 {[%emt 0:00:02]} 25. Kg1 {[%emt 0:00:33]} Rxe3 {[%emt 0:00:26]} 26. Rxd6 {[%emt 0:00:29]} c4 {[%emt 0:03:05]} 27. Rcd1 {[%emt 0:03:03]} Ne5 {[%emt 0:02:10]} 28. b3 {[%emt 0:03:05]} Nf3+ {[%emt 0:00:27]} 29. Kf2 {[%emt 0:00:49]} Ng5 {[%emt 0:01:31]} 30. Rd8 {[%emt 0:02:20]} Rxe2+ {[%emt 0:01:54]} 31. Qxe2 {[%emt 0:05:05]} Qb6+ {[%emt 0:00:01]} 32. Kg2 Rxd8 {[%emt 0:00:03]} 33. Rxd8+ {[%emt 0:00:11]} Qxd8 {[%emt 0:00:01]} 34. bxc4 {[%emt 0:00:07]} b4 {[%emt 0:00:40]} 35. Kh2 {[%emt 0:02:08]} a5 {[%emt 0:01:34]} 36. Bg2 {[%emt 0:00:36]} a4 {[%emt 0:00:17]} 37. Qc2 {[%emt 0:01:06]} Qa5 {[%emt 0:01:36]} 38. Bc6 {[%emt 0:01:19]} b3 {[%emt 0:00:55]} 39. axb3 {[%emt 0:00:46]} a3 {[%emt 0:00:12]} 40. Qa2 {[%emt 0:00:35]} Ne6 {[%emt 0:00:45]} 41. Bd5 {[%emt 0:10:16]} Nc5 {[%emt 0:04:46]} 42. Kg2 {[%emt 0:06:18]} Qa7 {[%emt 0:05:21]} 43. b4 {[%emt 0:03:39]} Nd3 {[%emt 0:00:03]} 44. b5 {[%emt 0:01:07]} Qd4 {[%emt 0:11:20]} 45. Qxa3 {[%emt 0:07:34]} Qf2+ {[%emt 0:00:16]} 46. Kh1 {[%emt 0:00:05]} Qxg3 {[%emt 0:00:26]} 47. Qa8+ {[%emt 0:00:12]} Kg7 {[%emt 0:00:01]} 48. Bg2 {[%emt 0:00:10]} Nf2+ {[%emt 0:00:12]} 49. Kg1 {[%emt 0:00:05]} Nxh3+ {[%emt 0:00:02]} 50. Kh1 {[%emt 0:00:10]} Nf2+ {[%emt 0:00:45]} 51. Kg1 {[%emt 0:00:12]} Ng4 {[%emt 0:03:05]} 52. Qe4 {[%emt 0:00:19]} Qf2+ {[%emt 0:01:01]} 53. Kh1 {[%emt 0:00:11]} h5 {[%emt 0:02:40]} 54. Qe7 {[%emt 0:04:42]} Qg3 {[%emt 0:00:42]} 55. Kg1 {[%emt 0:01:53]} Qf2+ {[%emt 0:00:20]} 56. Kh1 {[%emt 0:00:10]} Qf4 {[%emt 0:00:04]} 57. Kg1 {[%emt 0:00:24]} Qd4+ {[%emt 0:00:03]} 58. Kh1 {[%emt 0:00:19]} Qa1+ {[%emt 0:00:07]} 59. Bf1 {[%emt 0:00:04]} Qxf1# 0-1